Cogmind - Beta 13 *** ADVENTURER MODE // 2024.04.15 @ 19:38:57 Player: Hannah Result: Destroyed by Autobeam Turret with Autobeam Performance ------------- Evolutions (0) 0 Regions Visited (2) 400 Robots Destroyed (22) 110 Value Destroyed (723) 723 Prototype IDs (2) 40 Alien Tech Used (0) 0 Bonus (-30) -30 TOTAL SCORE: 1243 Bonus ------- Friendly Fire -30 Cogmind --------- Core Integrity 0/250 Matter 274/300 Energy 100/100 System Corruption 0% Temperature Cool (12) Movement Rolling (110) Location -10/Subcaves Parts ------- > --- POWER (1) -------- (None) > --- PROPULSION (2) --- Subdweller Monowheel Subdweller Monowheel > --- UTILITY (2) ------ Subdweller Optics Core Shielding > --- WEAPON (2) ------- Maul > --- INVENTORY (5) ---- Multitool Peak State ------------ > --- POWER ------------ Light Nuclear Core > --- PROPULSION ------- Subdweller Monowheel Subdweller Monowheel > --- UTILITY ---------- Subdweller Optics Core Shielding > --- WEAPON ----------- Subdweller Machine Gun Maul > --- INVENTORY -------- Multitool [Rating: 14] Favorites ----------- Power Light Nuclear Core Engine Light Ion Engine Power Core Light Nuclear Core Propulsion Aluminum Leg Leg Aluminum Leg Wheel Subdweller Monowheel Hover Unit Hover Unit Flight Unit Flight Unit Utility Large Storage Unit Device Sensor Array Storage Large Storage Unit Protection Core Shielding Weapon Small Laser Energy Gun Small Laser Ballistic Gun Subdweller Machine Gun Impact Weapon Maul Slashing Weapon Mining Claw Special Melee Weapon Datajack Build | -11 -10 -10 ------- Run | Yrd Mat Sub Slots Evolved . | . . . Power . | . . . Propulsion . | . . . Utility . | . . . Weapon . | . . . Parts Attached 33 | 5 21 7 Power 4 | 1 3 . Engine 3 | 1 2 . Core 1 | . 1 . Reactor . | . . . Propulsion 13 | 2 6 5 Treads . | . . . Leg 7 | 2 5 . Wheel 3 | . . 3 Hover 2 | . 1 1 Flight 1 | . . 1 Utility 4 | . 3 1 Device 2 | . 1 1 Storage 1 | . 1 . Processor . | . . . Hackware . | . . . Protection 1 | . 1 . Artifact . | . . . Weapon 12 | 2 9 1 Energy Gun 7 | 2 5 . Energy Cannon . | . . . Ballistic Gun 1 | . . 1 Ballistic Cannon . | . . . Launcher . | . . . Special Weapon . | . . . Impact Weapon 2 | . 2 . Slashing Weapon 1 | . 1 . Piercing Weapon . | . . . Special Melee Weapon 1 | . 1 . Unidentified Prototypes . | . . . Parts Lost 11 | . 6 5 Power 3 | . 2 1 Propulsion 2 | . . 2 Utility . | . . . Weapon 6 | . 4 2 Highest Loss Streak 3 | . 3 3 To Critical Strikes . | . . . Average Slot Usage (%) 94 | . 95 90 Engine 2 | . 3 . Core 10 | . 9 13 Leg 24 | . 27 7 Wheel 2 | . . 14 Device 5 | . 5 4 Storage 13 | . 13 9 Protection 9 | . 8 14 Energy Gun 15 | . 17 3 Ballistic Gun 1 | . . 6 Impact Weapon 6 | . 5 14 Special Melee Weapon 1 | . 1 . Naked Turns . | . . . Heaviest Build 33 | 5 32 33 Greatest Support 40 | 20 20 40 Greatest Overweight (x) 9 | . 2 9 Average Overweight (x) . | . . . Largest Inventory Capacity 15 | 5 15 15 Average Capacity 13 | 5 14 11 Most Carried 7 | 2 7 5 Average Carried 2 | . 2 2 Final Capacity 15 | 5 15 5 Final Carried 4 | . 4 1 Class Distribution -------------------- 85% | Mutant 14% | Scavenger-Mutant Dominant Class ---------------- Mutant | -10/Materials Mutant | -10/Subcaves Resources | -11 -10 -10 ----------- Run | Yrd Mat Sub Matter Collected 518 | 250 180 88 Remotely . | . . . Salvage Created 778 | 48 581 149 Parts 31 | 2 23 6 Haulers Intercepted . | . . . Recyclers Shooed . | . . . Parts Field Recycled . | . . . Retrieved Matter . | . . . Parts Self-Destructed 7 | . . 7 Prevented . | . . . Kills | -11 -10 -10 ------- Run | Yrd Mat Sub Combat Hostiles Destroyed 18 | 1 13 4 Guns 16 | 1 12 3 Classes Destroyed 5 | 1 1 3 Turret 1 | . . 1 Watcher 3 | . 3 . Swarmer 1 | . . 1 Grunt 14 | 1 13 . Subdweller 3 | . . 3 Best Kill Streak 2 | 1 2 2 Combat Bots Only 2 | 1 2 2 Max Kills in Single Turn 1 | 1 1 1 Gunslinging . | . . . Exploded . | . . . Melee . | . . . Uniques/NPCs Destroyed . | . . . Combat | -11 -10 -10 -------- Run | Yrd Mat Sub Hostile Shots Fired 223 | 7 114 102 Missed 76 | 1 35 40 Damage Taken 1441 | 50 764 627 Core 253 | . 139 114 Absorbed by Shields . | . . . Redirected to Shielding 25 | . 6 19 Ignored by Resistances 437 | 16 232 189 Regen/Repaired (Parts) 8 | . 8 . Core Remaining (%) 100 | 100 . . Volleys Fired 113 | 5 79 29 Largest 2 | 2 2 1 Hottest 90 | 80 90 45 Shots Fired 146 | 10 107 29 Gun 146 | 10 107 29 Cannon . | . . . Launcher . | . . . Special . | . . . Kinetic 27 | . . 27 Thermal 117 | 10 107 . Explosive . | . . . Electromagnetic 2 | . . 2 Robot Hit Streak 26 | 7 26 23 Robot Miss Streak 3 | 1 3 1 Penetration Max . | . . . Secondary Targets 3 | . 3 . Max Gunslinging Chain 1 | . 1 . Shots Hit Robots 123 | 8 81 34 Core Hits 41 | 2 32 7 Critical Kills . | . . . Critical Parts Destroyed 2 | . . 2 Critical Strikes 9 | . 7 2 Burn 7 | . 7 . Smash 2 | . . 2 Melee Attacks 21 | . 3 18 Impact 21 | . 3 18 Slashing . | . . . Piercing . | . . . Sneak Attacks 1 | . . 1 Combat Hostiles 1 | . . 1 Follow-up Attacks . | . . . Damage Inflicted 1909 | 90 978 841 Guns 1527 | 90 935 502 Cannons . | . . . Explosions . | . . . Melee 382 | . 43 339 Ramming . | . . . Kinetic 502 | . . 502 Thermal 1025 | 90 935 . Explosive . | . . . Electromagnetic . | . . . Impact 382 | . 43 339 Slashing . | . . . Piercing . | . . . Highest Corruption . | . . . Average Corruption . | . . . Corruption Purged . | . . . Corruption Blocked . | . . . Overload Shots . | . . . Overflow Damage 101 | . 21 80 Projectiles . | . . . Explosions . | . . . Melee 101 | . 21 80 Knockbacks 5 | . 1 4 Impact 5 | . 1 4 Kinetic . | . . . Secondary . | . . . Self-Inflicted Damage . | . . . Shots . | . . . Rammed . | . . . Targets Rammed . | . . . Kicked . | . . . Crushed . | . . . Highest Temperature 251 | 120 251 . Average Temperature 78 | 65 79 . Received Heat Transfer 816 | 36 579 201 Siege Activations . | . . . Robots Corrupted . | . . . Combat Hostiles . | . . . Parts Fried 5 | . 2 3 Impact Corruptions 5 | . 2 3 Robots Melted 1 | . 1 . Combat Hostiles 1 | . 1 . Parts Melted 11 | 1 10 . Heat Transferred 3044 | 200 2844 . Parts Sabotaged . | . . . Parts Stolen . | . . . Parts Stripped . | . . . Power Chain Reactions . | . . . Alert | -11 -10 -10 ------- Run | Yrd Mat Sub Peak Influence 136 | 20 136 . Initial 11 | . 11 . Average 29 | 1 30 . Maximum Alert Level . | . . . Low Security (%) 100 | 100 100 . Level 1 . | . . . Level 2 . | . . . Level 3 . | . . . Level 4 . | . . . Level 5 . | . . . High Security . | . . . Max Security . | . . . Squads Dispatched 3 | . 3 . Investigation 3 | . 3 . Extermination . | . . . Reinforcement . | . . . Assault . | . . . Garrison . | . . . Intercept . | . . . Searches Triggered . | . . . Construction Impeded . | . . . Haulers Reinforced . | . . . Active Scanning Responses . | . . . Cargo Convoy Interrupts . | . . . Stealth | -11 -10 -10 --------- Run | Yrd Mat Sub Distress Signals . | . . . Communications Jammed . | . . . Distress Signals . | . . . Times Spotted 66 | 1 19 46 Peak Tracking Total 7 | 1 4 7 Tactical Retreats 3 | . . 3 Traps | -11 -10 -10 ------- Run | Yrd Mat Sub Traps Triggered 1 | . 1 . Indirectly . | . . . Trap Hack Attempts . | . . . Triggered . | . . . Disarmed . | . . . Reprogrammed 6 | . 6 . Reused . | . . . Traps Extracted . | . . . Installed . | . . . Triggered . | . . . Machines | -11 -10 -10 ---------- Run | Yrd Mat Sub Machines Disabled . | . . . Max in Single Turn . | . . . Machines Repaired . | . . . Machines Dismantled . | . . . Machines Sabotaged . | . . . Overloaded Fab Kills . | . . . Hacking | -11 -10 -10 --------- Run | Yrd Mat Sub Machines Accessed 11 | . 11 . Terminals 8 | . 8 . Fabricators . | . . . Repair Stations 1 | . 1 . Recycling Units 2 | . 2 . Scanalyzers . | . . . Garrison Access . | . . . Total Hacks 48 | . 48 . Successful 27 | . 27 . Failed 21 | . 21 . Catastrophic 2 | . 2 . Database Lockouts . | . . . Manual . | . . . Terminals 33 | . 33 . Fabricators . | . . . Repair Stations 6 | . 6 . Recycling Units 9 | . 9 . Scanalyzers . | . . . Garrison Access . | . . . Terminal Hacks 17 | . 17 . Record 1 | . 1 . Prototype ID Bank 1 | . 1 . Alert Level 3 | . 3 . Locate Traps 2 | . 2 . Reprogram Traps 1 | . 1 . Hauler Manifests 2 | . 2 . Registered Components 1 | . 1 . Registered Prototypes 1 | . 1 . Zone Layout 5 | . 5 . Fabricator Hacks . | . . . Repair Station Hacks 5 | . 5 . Scan Component 3 | . 3 . Repair 2 | . 2 . Recycling Unit Hacks 5 | . 5 . Report Inventory 3 | . 3 . Retrieve Components 2 | . 2 . Scanalyzer . | . . . Garrison Access Hacks . | . . . Unauthorized Hacks . | . . . Terminals . | . . . Fabricators . | . . . Repair Stations . | . . . Recycling Units . | . . . Scanalyzers . | . . . Garrison Access . | . . . Data Cores Recovered . | . . . Used . | . . . Hacking Detections 9 | . 9 . Full Trace Events 6 | . 6 . Feedback Events . | . . . Feedback Blocked . | . . . Robot Schematics Acquired . | . . . Robots Built . | . . . Authchips . | . . . Time . | . . . Total Robot Build Rating . | . . . Part Schematics Acquired . | . . . Parts Built . | . . . Authchips . | . . . Time . | . . . Total Part Build Rating . | . . . Parts Repaired 2 | . 2 . Time 52 | . 52 . Parts Recycled . | . . . Recycled Matter . | . . . Retrieved Matter . | . . . Retrieved Components 8 | . 8 . Parts Scanalyzed . | . . . Part Schematics Acquired . | . . . Parts Damaged . | . . . Bothacking | -11 -10 -10 ------------ Run | Yrd Mat Sub Used RIF Installer . | . . . Robots Hacked . | . . . Non-combat . | . . . Combat . | . . . Robot Hacks Applied . | . . . Relay Couplers Released . | . . . Fabnet Peak Effective % . | . . . Robots Rewired . | . . . Allies Hacked . | . . . Hacks Repelled . | . . . Allies | -11 -10 -10 -------- Run | Yrd Mat Sub Total Allies . | . . . Largest Group . | . . . Highest-Rated Group . | . . . Highest-Rated Ally . | . . . Total Orders . | . . . Ally Attacks . | . . . Total Damage . | . . . Kills . | . . . Allies Corrupted . | . . . Allies Melted . | . . . Intel | -11 -10 -10 ------- Run | Yrd Mat Sub Robot Analysis Total . | . . . Derelict Logs Recovered 2 | . . 2 Drone Launches . | . . . Drone Recoveries . | . . . Exploration | -11 -10 -10 ------------- Run | Yrd Mat Sub Turns Passed 2344 | 99 1871 374 Spaces Moved 1119 | 75 866 178 Core 24 | 22 . 2 Treads . | . . . Legs 966 | 53 866 47 Wheels 129 | . . 129 Hover . | . . . Flight . | . . . Fastest Speed 50 | 50 120 110 Average Speed 173 | 99 187 137 Slowest Speed 500 | 120 260 500 Overloaded Moves . | . . . Propulsion Burnouts . | . . . Robots Hopped . | . . . Cave-ins Triggered . | . . . Exploration Rate (%) 41 | 7 94 22 Regions Visited 2 Branch Regions 1 Pre-discovered Areas 2 | . . 2 Known Exits Taken . | . . . Unknown Exits Taken 2 | 1 1 . Scrap Searched . | . . . Spaces Dug 2 | . 1 1 Terrain Destroyed 2 | . 1 1 Melee 2 | . 1 1 Projectile . | . . . AOE . | . . . Terrain Rammed . | . . . Walls Destroyed . | . . . Machines Disabled . | . . . Actions | -11 -10 -10 --------- Run | Yrd Mat Sub Total 1335 | 89 1000 246 Wait . | . . . Move 1117 | 74 865 178 Hop . | . . . Pick Up 34 | 5 22 7 Fast Attach . | . . . Attach 28 | 5 16 7 Detach 2 | . 2 . Swap 5 | . 5 . Drop 15 | . 8 7 Fire 113 | 5 79 29 Melee 21 | . 3 18 Ram . | . . . Kick . | . . . Crush . | . . . Escape Stasis . | . . . Rewire . | . . . Trap . | . . . Miscellaneous . | . . . Route ------- -11/Scrapyard -10/Materials (discovered 5 exits: [*Mat x3] / [*Min] / [*Sub]) -10/Subcaves (discovered 2 exits: [*Mat] / [*Rec]) History --------- Turn | Location | Event 2 | -11/Scrapyard | Met Revision 17 73 | -11/Scrapyard | Discovered new exit (range 8) 100 | -11/Scrapyard | Entered Materials 310 | -10/Materials | Build established: Mutant 348 | -10/Materials | Lost 3 parts (1p2w) 424 | -10/Materials | Discovered new exit (range 16) 1073 | -10/Materials | Discovered new exit (range 18) 1102 | -10/Materials | Repaired Aluminum Leg 1128 | -10/Materials | Repaired Sensor Array 1229 | -10/Materials | Core integrity fell below 50% 1528 | -10/Materials | Discovered new exit (range 16) 1692 | -10/Materials | Discovered new exit (range 5) 1944 | -10/Materials | Discovered new exit (range 14) 1971 | -10/Materials | Entered Subcaves 1979 | -10/Subcaves | Learned location of Mines (-10) 1994 | -10/Subcaves | Learned location of Storage (-8) 2009 | -10/Subcaves | Discovered new exit (range 13) 2055 | -10/Subcaves | Ambushed by swarm of Subdwellers 2115 | -10/Subcaves | Lost 3 parts (2n1w) 2129 | -10/Subcaves | Shifting Twisted Machinery released Sub. Machine Gun 2157 | -10/Subcaves | Shifting Twisted Machinery released Sub. Monowheel 2270 | -10/Subcaves | Core integrity fell below 20% 2325 | -10/Subcaves | Discovered new exit (range 10) 2345 | -10/Subcaves | Destroyed by Autobeam Turret with Autobeam Last Messages --------------- MH-9I3(R) destroyed. ZW-LGO(R) affixes Scrap Shield Fragment to Scrap Shield. ZW-LGO(R) destroyed. Sub. Monowheel shoots sparks and powers down. Dropped Broken Sub. Monowheel. Acquired 22 matter. Acquired Sub. Monowheel. S-10 Pest springs to life. Destroyed Flight Unit. S-10 Pest destroyed. SV-RY4(g) destroyed. EXIT=FOUND Lgt. Assault Rifle fries itself beyond repair. Flight Unit fries itself beyond repair. S-10 Pest destroyed. Lgt. Nuclear Core destroyed. Autobeam Turret destroyed. Lgt. Assault Rifle fries itself beyond repair. Sub. Machine Gun destroyed. Map ----- +----------------------------------------------------+ | ??????????# ??# ##???????????????? | | ??????????? ??# ### ##???????????????? | | ???????????# ??## ### ##??????????????? | | ??????????## ??# ## ##?????????????? | | ??????????# ?## # #?????????????? | | ??????????# ## ## #?????????????? | | ??????##???# % #### #?????????????? | | #??#### ???# ##??#### ##?????????????? | | # # ??# ##?#????### ##???????????? | | "" ?# ##?## #### #??????????## | | ## ##??# #??####?### # | | ???# ##??# ##### ### # | | ???# = #??# % ]%# | | ???## #??# ## *!! # | | ????### ### ??# ##/ ## # # | | ??????# ##????# #### ##### ## | | ??????# !&#?????#######??## #??## ## # | | ??????# ## *%%######<#####????###?## | | ??????# ?# ! ##"""" """"#????#??##" "" | | ??????# ### #" " " "#??### # "" " " | | ??????## ??# #? t% "#?# " "% " | | ???????### ?## ##? #?# " %" # | | ????????## ## ##?? % #?## ## # " =" # | | ????????# #?? s ????# ??#### | | ????????# ####% ##???? ??????####### # | | ????????## ## ##@ ##???????????????# # | | ?????????### ## # ## #?# ###### | | ???????????## ##### ! #???# " # # | | ????????????# ????## % ##???# "" *# | | ????????????# ?????# ##????# ##""&" | | ????????????#####?????# ## #?????# ??##"%# | | ?????????????????????? ##? ##?????? ????#&%# | | ?????????????????????# #??? #?????? ?????# !# | | ?????????????????????# ###??? ##????? ?????##" " | | ?????????????????????# ???????##????????????## | | ?????????????????????##?????????????????????# "" | | ????????????????????????????????????????????####" | | ???????????????????????????????? ?????????????# | | ?????????????????????????????? ?????????????## | | ???????????????????????????? #??????????#### | | ?????????????????????????? ##????????#"## | | ?????????????????? ???????? ## ??????# # | | ?????????????????? ##?????? ??????## ## | | ?????????????????? #??????# ??????# #? | | ???????????????### < #???????# ????## ## | | ??????####????? " ##?????## " ???## # | | ?????## #??### " & ???????" % % ???## # | | ?????# #### " " ?????#####! & "#### # | | ?????# ### #?#####" ""%!&% ## # | | ?????# ##? # " ### """[ ] %## ## | +----------------------------------------------------+ Best States ------------- Heat Dissipation 25 Energy Generation 14 Energy Capacity 250 Matter Stores 300 Matter Capacity 300 Sight Range 21 Robot Scan Range 14 Terrain Scan Density 10 Resistance: KI 20 Resistance: TH 20 Resistance: EX 20 Resistance: EM 20 Resistance: I 20 Resistance: S 20 Resistance: P 20 Core Shielding 20 Evasion (%) 55 Offensive Hacking 10 Item Schematics ----------------- None Robot Schematics ------------------ None Fabricated ------------ Nothing Alien Tech Used ----------------- None Achievements -------------- It's Just You Challenges ------------ None Game ------ Seed IonModifiedConstruct Manual? 0 Play Time 00:22:47 Cumulative 2.6 hours Start 2024.04.15 @ 19:18:39 End 2024.04.15 @ 19:38:57 Sessions 1 Manual Loads 0 Difficulty Adventurer Special Mode None Game No. 3 Rogue 0 Adventurer 3 Explorer 0 Win Type - Total 0 Types 0/0/0/0/0/0/0/0/0 Lore% 1 Gallery% 9 Achievement% 8 Wizard Run 0 Options --------- Layout 1 ASCII 0 Keyboard 0 Movement Mouse Keybinds 0 Fullscreen 2 Font 24/Smallcaps Map View 50x35 Zoom Use 0% Tactical HUD 0 Map Filters NONE Filters NONE Steam 1 RUN: 9c0ef942-4822-4cce-8568-66f89383ad8b